[Event "Titled Tuesday Blitz September 27 Late 2022"]
[White "Gokerkan, Cem Kaan"]
[Black "Karas, Marek"]
[WhiteFideId "6336760"]
[BlackFideId "14928558"]
[WhiteElo "2364"]
[BlackElo "2272"]
[Result "1-0"]
[Round "03"]
[TimeControl "180+1"]
[Date "2022.09.27"]
[WhiteClock "0:00:12"]
[BlackClock "0:00:01"]

1. c4 {[%clk 0:03:00]}  e5 {[%clk 0:02:59]} 2. d3 {[%clk 0:02:58]}  Nf6 {[%clk 0:02:59]} 3. Nf3 {[%clk 0:02:58]}  Nc6 {[%clk 0:02:59]} 4. a3 {[%clk 0:02:58]}  a5 {[%clk 0:02:55]} 5. Nc3 {[%clk 0:02:41]}  Bc5 {[%clk 0:02:46]} 6. e3 {[%clk 0:02:39]}  d6 {[%clk 0:02:45]} 7. Be2 {[%clk 0:02:39]}  Bb6 {[%clk 0:02:43]} 8. O-O {[%clk 0:02:39]}  Bg4 {[%clk 0:02:40]} 9. h3 {[%clk 0:02:35]}  Bh5 {[%clk 0:02:39]} 10. Rb1 {[%clk 0:02:10]}  O-O {[%clk 0:02:38]} 11. b4 {[%clk 0:02:10]}  axb4 {[%clk 0:02:38]} 12. axb4 {[%clk 0:02:11]}  Re8 {[%clk 0:02:30]} 13. b5 {[%clk 0:02:09]}  Ne7 {[%clk 0:02:27]} 14. Na4 {[%clk 0:01:53]}  Ba5 {[%clk 0:02:21]} 15. e4 {[%clk 0:01:31]}  b6 {[%clk 0:02:13]} 16. Qc2 {[%clk 0:01:21]}  Nd7 {[%clk 0:02:04]} 17. Ra1 {[%clk 0:01:19]}  Nf8 {[%clk 0:02:01]} 18. Nc3 {[%clk 0:01:04]}  Bxc3 {[%clk 0:01:58]} 19. Rxa8 {[%clk 0:01:05]}  Qxa8 {[%clk 0:01:57]} 20. Qxc3 {[%clk 0:01:06]}  Ne6 {[%clk 0:01:56]} 21. Be3 {[%clk 0:01:02]}  Qa2 {[%clk 0:01:47]} 22. Nd2 {[%clk 0:00:48]}  Bxe2 {[%clk 0:01:40]} 23. Ra1 {[%clk 0:00:48]}  Qxa1+ {[%clk 0:01:29]} 24. Qxa1 {[%clk 0:00:49]}  Bxd3 {[%clk 0:01:27]} 25. Qa3 {[%clk 0:00:44]}  Be2 {[%clk 0:01:19]} 26. f3 {[%clk 0:00:44]}  f5 {[%clk 0:01:08]} 27. Kf2 {[%clk 0:00:44]}  f4 {[%clk 0:01:04]} 28. Bxb6 {[%clk 0:00:44]}  cxb6 {[%clk 0:01:01]} 29. Kxe2 {[%clk 0:00:45]}  Nc8 {[%clk 0:00:36]} 30. Nb3 {[%clk 0:00:43]}  Kf7 {[%clk 0:00:34]} 31. Qa8 {[%clk 0:00:42]}  Rd8 {[%clk 0:00:30]} 32. Qb7+ {[%clk 0:00:42]}  Ke8 {[%clk 0:00:26]} 33. Kd2 {[%clk 0:00:41]}  h6 {[%clk 0:00:22]} 34. h4 {[%clk 0:00:41]}  Kf8 {[%clk 0:00:22]} 35. Nc1 {[%clk 0:00:34]}  Nc5 {[%clk 0:00:17]} 36. Qa8 {[%clk 0:00:34]}  Ke7 {[%clk 0:00:15]} 37. Ne2 {[%clk 0:00:32]}  Ke8 {[%clk 0:00:10]} 38. Nc3 {[%clk 0:00:33]}  Ne7 {[%clk 0:00:10]} 39. Qa7 {[%clk 0:00:29]}  Nd7 {[%clk 0:00:10]} 40. Nd5 {[%clk 0:00:27]}  Nxd5 {[%clk 0:00:10]} 41. exd5 {[%clk 0:00:27]}  Rc8 {[%clk 0:00:10]} 42. Kd3 {[%clk 0:00:24]}  Ke7 {[%clk 0:00:10]} 43. h5 {[%clk 0:00:23]}  Ke8 {[%clk 0:00:08]} 44. Ke4 {[%clk 0:00:18]}  Ke7 {[%clk 0:00:07]} 45. Kf5 {[%clk 0:00:19]}  Rf8+ {[%clk 0:00:04]} 46. Kg6 {[%clk 0:00:19]}  Rf6+ {[%clk 0:00:04]} 47. Kxg7 {[%clk 0:00:19]}  Rf7+ {[%clk 0:00:02]} 48. Kxh6 {[%clk 0:00:20]}  Rf6+ {[%clk 0:00:02]} 49. Kg5 {[%clk 0:00:20]}  Rf8 {[%clk 0:00:02]} 50. h6 {[%clk 0:00:21]}  Rg8+ {[%clk 0:00:03]} 51. Kf5 {[%clk 0:00:21]}  Rh8 {[%clk 0:00:03]} 52. Kg6 {[%clk 0:00:16]}  Rg8+ {[%clk 0:00:03]} 53. Kh5 {[%clk 0:00:15]}  Rxg2 {[%clk 0:00:02]} 54. Qc7 {[%clk 0:00:12]}  Rh2+ {[%clk 0:00:01]} 55. Kg5 {[%clk 0:00:12]}  Rg2+ {[%clk 0:00:02]} 56. Kf5 {[%clk 0:00:13]}  Rh2 {[%clk 0:00:02]} 57. c5 {[%clk 0:00:13]}  bxc5 {[%clk 0:00:02]} 58. b6 {[%clk 0:00:14]}  Rxh6 {[%clk 0:00:01]} 59. b7 {[%clk 0:00:14]}  Rh7 {[%clk 0:00:01]} 60. b8=Q {[%clk 0:00:12]}  Rf7+ {[%clk 0:00:01]} 61. Ke4 {[%clk 0:00:12]} 1-0


[Site "https://www.chess.com"]

[Event "Titled Tuesday Blitz September 27 Late 2022"]
[White "Jobava, Baadur"]
[Black "Kalogeris, Ioannis"]
[WhiteFideId "13601520"]
[BlackFideId "4239563"]
[WhiteElo "2582"]
[BlackElo "2291"]
[Result "1-0"]
[Round "03"]
[TimeControl "180+1"]
[Date "2022.09.27"]
[WhiteClock "0:02:35"]
[BlackClock "0:01:16"]

1. e4 {[%clk 0:03:00]}  e5 {[%clk 0:02:59]} 2. Nf3 {[%clk 0:03:00]}  Nc6 {[%clk 0:02:58]} 3. Bc4 {[%clk 0:03:01]}  Bc5 {[%clk 0:02:57]} 4. c3 {[%clk 0:03:02]}  Nf6 {[%clk 0:02:57]} 5. d4 {[%clk 0:03:02]}  exd4 {[%clk 0:02:57]} 6. e5 {[%clk 0:03:03]}  d5 {[%clk 0:02:55]} 7. Be2 {[%clk 0:03:04]}  Ne4 {[%clk 0:02:42]} 8. cxd4 {[%clk 0:03:04]}  Bb4+ {[%clk 0:02:39]} 9. Bd2 {[%clk 0:03:04]}  Nxd2 {[%clk 0:02:35]} 10. Nbxd2 {[%clk 0:03:05]}  O-O {[%clk 0:02:35]} 11. O-O {[%clk 0:03:06]}  f6 {[%clk 0:02:30]} 12. Nb3 {[%clk 0:03:05]}  Kh8 {[%clk 0:02:21]} 13. a3 {[%clk 0:03:03]}  Be7 {[%clk 0:02:19]} 14. Re1 {[%clk 0:03:04]}  Bg4 {[%clk 0:02:11]} 15. h3 {[%clk 0:03:04]}  Bh5 {[%clk 0:02:11]} 16. Rc1 {[%clk 0:03:03]}  fxe5 {[%clk 0:02:04]} 17. dxe5 {[%clk 0:03:04]}  Qd7 {[%clk 0:01:48]} 18. e6 {[%clk 0:02:53]}  Qd6 {[%clk 0:01:47]} 19. Nc5 {[%clk 0:02:48]}  Rab8 {[%clk 0:01:43]} 20. Nd7 {[%clk 0:02:47]}  Qxe6 {[%clk 0:01:35]} 21. Nxb8 {[%clk 0:02:44]}  Rxb8 {[%clk 0:01:30]} 22. Nd4 {[%clk 0:02:37]}  Qf6 {[%clk 0:01:22]} 23. Nxc6 {[%clk 0:02:34]}  Bxe2 {[%clk 0:01:21]} 24. Qxe2 {[%clk 0:02:35]}  bxc6 {[%clk 0:01:16]} 25. Qxe7 {[%clk 0:02:35]} 1-0


[Site "https://www.chess.com"]

[Event "Titled Tuesday Blitz September 27 Late 2022"]
[White "Levitskiy, Andrey"]
[Black "Mickiewicz, Piotr"]
[WhiteFideId "14132885"]
[BlackFideId "1114891"]
[WhiteElo "2303"]
[BlackElo "2246"]
[Result "0-1"]
[Round "03"]
[TimeControl "180+1"]
[Date "2022.09.28"]
[WhiteClock "0:00:16"]
[BlackClock "0:00:10"]

1. e4 {[%clk 0:03:00]}  e5 {[%clk 0:02:59]} 2. Nf3 {[%clk 0:02:57]}  Nc6 {[%clk 0:02:58]} 3. Bc4 {[%clk 0:02:57]}  Bc5 {[%clk 0:02:57]} 4. c3 {[%clk 0:02:57]}  Nf6 {[%clk 0:02:56]} 5. d4 {[%clk 0:02:58]}  exd4 {[%clk 0:02:56]} 6. b4 {[%clk 0:02:58]}  Bb6 {[%clk 0:02:51]} 7. e5 {[%clk 0:02:59]}  d5 {[%clk 0:02:50]} 8. exf6 {[%clk 0:02:59]}  dxc4 {[%clk 0:02:50]} 9. b5 {[%clk 0:03:00]}  Na5 {[%clk 0:02:44]} 10. Qe2+ {[%clk 0:03:00]}  Be6 {[%clk 0:02:40]} 11. fxg7 {[%clk 0:03:01]}  Rg8 {[%clk 0:02:38]} 12. Nxd4 {[%clk 0:03:02]}  Qd5 {[%clk 0:02:13]} 13. f3 {[%clk 0:01:33]}  O-O-O {[%clk 0:02:09]} 14. Be3 {[%clk 0:01:31]}  Rxg7 {[%clk 0:02:07]} 15. Nd2 {[%clk 0:01:29]}  Rdg8 {[%clk 0:01:59]} 16. g3 {[%clk 0:01:18]}  h5 {[%clk 0:01:58]} 17. O-O-O {[%clk 0:01:15]}  h4 {[%clk 0:01:57]} 18. Ne4 {[%clk 0:01:11]}  hxg3 {[%clk 0:01:46]} 19. Nf6 {[%clk 0:00:55]}  Qd6 {[%clk 0:01:17]} 20. Nxg8 {[%clk 0:00:51]}  g2 {[%clk 0:01:16]} 21. Rhg1 {[%clk 0:00:51]}  Qa3+ {[%clk 0:00:40]} 22. Qb2 {[%clk 0:00:48]}  Qxb2+ {[%clk 0:00:39]} 23. Kxb2 {[%clk 0:00:49]}  Rxg8 {[%clk 0:00:35]} 24. h4 {[%clk 0:00:43]}  Bh3 {[%clk 0:00:32]} 25. h5 {[%clk 0:00:42]}  Bc5 {[%clk 0:00:19]} 26. h6 {[%clk 0:00:41]}  b6 {[%clk 0:00:17]} 27. Nc2 {[%clk 0:00:29]}  Nb7 {[%clk 0:00:16]} 28. Bxc5 {[%clk 0:00:20]}  Nxc5 {[%clk 0:00:17]} 29. Ne3 {[%clk 0:00:21]}  Nd3+ {[%clk 0:00:16]} 30. Kc2 {[%clk 0:00:22]}  Nf4 {[%clk 0:00:14]} 31. Rd4 {[%clk 0:00:10]}  Ne2 {[%clk 0:00:13]} 32. h7 {[%clk 0:00:11]}  Rh8 {[%clk 0:00:12]} 33. Rxg2 {[%clk 0:00:03]}  Nxd4+ {[%clk 0:00:12]} 34. cxd4 {[%clk 0:00:04]}  Bxg2 {[%clk 0:00:13]} 35. Nxg2 {[%clk 0:00:04]}  Rxh7 {[%clk 0:00:13]} 36. Ne3 {[%clk 0:00:05]}  Rh5 {[%clk 0:00:12]} 37. a4 {[%clk 0:00:04]}  Kd7 {[%clk 0:00:12]} 38. Nxc4 {[%clk 0:00:05]}  Rh3 {[%clk 0:00:11]} 39. Kd2 {[%clk 0:00:05]}  Ke6 {[%clk 0:00:11]} 40. Ke3 {[%clk 0:00:05]}  Rh1 {[%clk 0:00:10]} 41. Kd3 {[%clk 0:00:03]}  Ra1 {[%clk 0:00:11]} 42. a5 {[%clk 0:00:02]}  bxa5 {[%clk 0:00:10]} 43. Ne3 {[%clk 0:00:03]}  Ra3+ {[%clk 0:00:10]} 44. Ke4 {[%clk 0:00:03]}  Rxe3+ {[%clk 0:00:02]} 45. Kxe3 {[%clk 0:00:04]}  Kd5 {[%clk 0:00:03]} 46. Kd3 {[%clk 0:00:05]}  a4 {[%clk 0:00:04]} 47. Kc3 {[%clk 0:00:06]}  a3 {[%clk 0:00:04]} 48. Kb3 {[%clk 0:00:06]}  Kxd4 {[%clk 0:00:04]} 49. Kxa3 {[%clk 0:00:07]}  Kc5 {[%clk 0:00:05]} 50. Ka4 {[%clk 0:00:07]}  c6 {[%clk 0:00:04]} 51. b6 {[%clk 0:00:07]}  axb6 {[%clk 0:00:03]} 52. f4 {[%clk 0:00:08]}  Kd5 {[%clk 0:00:03]} 53. Kb4 {[%clk 0:00:09]}  f6 {[%clk 0:00:03]} 54. f5 {[%clk 0:00:09]}  Ke5 {[%clk 0:00:03]} 55. Kc4 {[%clk 0:00:10]}  Kxf5 {[%clk 0:00:04]} 56. Kd4 {[%clk 0:00:11]}  Ke6 {[%clk 0:00:04]} 57. Ke4 {[%clk 0:00:11]}  f5+ {[%clk 0:00:05]} 58. Kf4 {[%clk 0:00:12]}  Kf6 {[%clk 0:00:06]} 59. Kf3 {[%clk 0:00:13]}  c5 {[%clk 0:00:07]} 60. Ke3 {[%clk 0:00:14]}  c4 {[%clk 0:00:08]} 61. Kd4 {[%clk 0:00:14]}  b5 {[%clk 0:00:09]} 62. Kc3 {[%clk 0:00:13]}  Ke5 {[%clk 0:00:08]} 63. Kb4 {[%clk 0:00:13]}  Kd4 {[%clk 0:00:08]} 64. Kxb5 {[%clk 0:00:14]}  c3 {[%clk 0:00:09]} 65. Kb4 {[%clk 0:00:15]}  c2 {[%clk 0:00:10]} 66. Kb3 {[%clk 0:00:16]}  c1=Q {[%clk 0:00:10]} 0-1


[Site "https://www.chess.com"]

[Event "Titled Tuesday Blitz September 27 Late 2022"]
[White "Lewtak, Damian"]
[Black "Pakleza, Zbigniew"]
[WhiteFideId "1141724"]
[BlackFideId "1119290"]
[WhiteElo "2329"]
[BlackElo "2411"]
[Result "1-0"]
[Round "03"]
[TimeControl "180+1"]
[Date "2022.09.28"]
[WhiteClock "0:00:21"]
[BlackClock "0:00:01"]

1. e4 {[%clk 0:02:58]}  d6 {[%clk 0:03:00]} 2. Nf3 {[%clk 0:02:58]}  Nf6 {[%clk 0:03:00]} 3. Nc3 {[%clk 0:02:58]}  Bg4 {[%clk 0:03:00]} 4. h3 {[%clk 0:02:53]}  Bh5 {[%clk 0:03:00]} 5. d4 {[%clk 0:02:51]}  e6 {[%clk 0:03:00]} 6. Be2 {[%clk 0:02:46]}  Be7 {[%clk 0:03:00]} 7. Be3 {[%clk 0:02:46]}  d5 {[%clk 0:03:00]} 8. exd5 {[%clk 0:02:30]}  exd5 {[%clk 0:03:01]} 9. Ne5 {[%clk 0:02:30]}  Bxe2 {[%clk 0:03:01]} 10. Qxe2 {[%clk 0:02:31]}  c6 {[%clk 0:03:00]} 11. Bg5 {[%clk 0:02:25]}  O-O {[%clk 0:03:00]} 12. O-O {[%clk 0:02:24]}  Re8 {[%clk 0:03:00]} 13. Rae1 {[%clk 0:02:21]}  h6 {[%clk 0:03:00]} 14. Bh4 {[%clk 0:02:16]}  Nbd7 {[%clk 0:02:57]} 15. Nxd7 {[%clk 0:02:09]}  Qxd7 {[%clk 0:02:56]} 16. Qd3 {[%clk 0:02:06]}  Nh7 {[%clk 0:02:35]} 17. Bxe7 {[%clk 0:02:03]}  Rxe7 {[%clk 0:02:36]} 18. Re3 {[%clk 0:01:58]}  Rxe3 {[%clk 0:02:02]} 19. fxe3 {[%clk 0:01:59]}  Rd8 {[%clk 0:01:59]} 20. Rf4 {[%clk 0:01:34]}  Ng5 {[%clk 0:01:48]} 21. h4 {[%clk 0:01:20]}  Ne6 {[%clk 0:01:42]} 22. Rf2 {[%clk 0:01:17]}  Qe7 {[%clk 0:01:37]} 23. g3 {[%clk 0:01:16]}  g6 {[%clk 0:01:33]} 24. Re2 {[%clk 0:01:08]}  Qd6 {[%clk 0:01:27]} 25. Kg2 {[%clk 0:01:02]}  Ng7 {[%clk 0:01:23]} 26. e4 {[%clk 0:00:55]}  dxe4 {[%clk 0:00:57]} 27. Rxe4 {[%clk 0:00:55]}  Nf5 {[%clk 0:00:46]} 28. Ne2 {[%clk 0:00:52]}  c5 {[%clk 0:00:38]} 29. c3 {[%clk 0:00:50]}  cxd4 {[%clk 0:00:37]} 30. Nxd4 {[%clk 0:00:49]}  Qd5 {[%clk 0:00:35]} 31. Qf3 {[%clk 0:00:47]}  Ng7 {[%clk 0:00:11]} 32. a3 {[%clk 0:00:40]}  a6 {[%clk 0:00:09]} 33. Re7 {[%clk 0:00:38]}  Qxf3+ {[%clk 0:00:06]} 34. Kxf3 {[%clk 0:00:39]}  b5 {[%clk 0:00:05]} 35. Ra7 {[%clk 0:00:34]}  Rd6 {[%clk 0:00:06]} 36. b4 {[%clk 0:00:35]}  h5 {[%clk 0:00:05]} 37. Ke4 {[%clk 0:00:34]}  Ne6 {[%clk 0:00:04]} 38. Nxe6 {[%clk 0:00:32]}  Rxe6+ {[%clk 0:00:05]} 39. Kd4 {[%clk 0:00:31]}  Kg7 {[%clk 0:00:05]} 40. c4 {[%clk 0:00:31]}  bxc4 {[%clk 0:00:06]} 41. Kxc4 {[%clk 0:00:31]}  Kf6 {[%clk 0:00:06]} 42. a4 {[%clk 0:00:31]}  g5 {[%clk 0:00:06]} 43. hxg5+ {[%clk 0:00:31]}  Kg6 {[%clk 0:00:06]} 44. b5 {[%clk 0:00:31]}  axb5+ {[%clk 0:00:07]} 45. axb5 {[%clk 0:00:32]}  Re4+ {[%clk 0:00:06]} 46. Kc5 {[%clk 0:00:31]}  Re5+ {[%clk 0:00:05]} 47. Kc6 {[%clk 0:00:28]}  Rxg5 {[%clk 0:00:05]} 48. Ra3 {[%clk 0:00:26]}  Rg4 {[%clk 0:00:02]} 49. b6 {[%clk 0:00:26]}  Rc4+ {[%clk 0:00:03]} 50. Kb5 {[%clk 0:00:25]}  Rc8 {[%clk 0:00:02]} 51. b7 {[%clk 0:00:25]}  Rf8 {[%clk 0:00:02]} 52. Kc6 {[%clk 0:00:24]}  f5 {[%clk 0:00:02]} 53. Ra4 {[%clk 0:00:25]}  f4 {[%clk 0:00:01]} 54. Rxf4 {[%clk 0:00:21]} 1-0


[Site "https://www.chess.com"]

[Event "Titled Tuesday Blitz September 27 Late 2022"]
[White "Lin, Dachey"]
[Black "Gubajdullin, Alexei"]
[WhiteFideId "2029650"]
[BlackFideId "4141202"]
[WhiteElo "2313"]
[BlackElo "2195"]
[Result "1/2-1/2"]
[Round "03"]
[TimeControl "180+1"]
[Date "2022.09.28"]
[WhiteClock "0:00:10"]
[BlackClock "0:00:13"]

1. g4 {[%clk 0:03:00]}  d5 {[%clk 0:02:50]} 2. Bg2 {[%clk 0:03:00]}  c6 {[%clk 0:02:50]} 3. g5 {[%clk 0:03:00]}  Bf5 {[%clk 0:02:48]} 4. d3 {[%clk 0:03:01]}  e6 {[%clk 0:02:48]} 5. e4 {[%clk 0:02:59]}  dxe4 {[%clk 0:02:47]} 6. dxe4 {[%clk 0:03:00]}  Qxd1+ {[%clk 0:02:47]} 7. Kxd1 {[%clk 0:03:01]}  Bg6 {[%clk 0:02:43]} 8. h4 {[%clk 0:03:00]}  h6 {[%clk 0:02:39]} 9. Be3 {[%clk 0:02:40]}  hxg5 {[%clk 0:02:38]} 10. hxg5 {[%clk 0:02:40]}  Rxh1 {[%clk 0:02:37]} 11. Bxh1 {[%clk 0:02:41]}  e5 {[%clk 0:02:34]} 12. Nd2 {[%clk 0:02:26]}  Nd7 {[%clk 0:02:34]} 13. Nc4 {[%clk 0:02:26]}  f6 {[%clk 0:02:33]} 14. gxf6 {[%clk 0:02:24]}  gxf6 {[%clk 0:02:32]} 15. Ne2 {[%clk 0:02:20]}  Bf7 {[%clk 0:02:29]} 16. Nd2 {[%clk 0:02:08]}  Bc5 {[%clk 0:02:28]} 17. Nf1 {[%clk 0:02:02]}  O-O-O {[%clk 0:02:24]} 18. Ke1 {[%clk 0:02:03]}  Ne7 {[%clk 0:02:13]} 19. Bf3 {[%clk 0:02:02]}  Be6 {[%clk 0:02:07]} 20. Rd1 {[%clk 0:01:59]}  Bb6 {[%clk 0:02:00]} 21. Rd6 {[%clk 0:01:53]}  Nf8 {[%clk 0:01:56]} 22. Rxd8+ {[%clk 0:01:51]}  Kxd8 {[%clk 0:01:56]} 23. Bxb6+ {[%clk 0:01:42]}  axb6 {[%clk 0:01:56]} 24. a4 {[%clk 0:01:43]}  Nfg6 {[%clk 0:01:49]} 25. Ne3 {[%clk 0:01:42]}  Nh4 {[%clk 0:01:46]} 26. Bh5 {[%clk 0:01:38]}  Nc8 {[%clk 0:01:40]} 27. Kd2 {[%clk 0:01:26]}  Nd6 {[%clk 0:01:39]} 28. Kd3 {[%clk 0:01:27]}  Bf7 {[%clk 0:01:23]} 29. Bg4 {[%clk 0:01:15]}  Bg6 {[%clk 0:01:22]} 30. Ng3 {[%clk 0:01:15]}  Ke7 {[%clk 0:01:17]} 31. f3 {[%clk 0:01:10]}  Bf7 {[%clk 0:01:10]} 32. c4 {[%clk 0:01:10]}  c5 {[%clk 0:01:02]} 33. b3 {[%clk 0:01:08]}  Be6 {[%clk 0:01:00]} 34. Bh5 {[%clk 0:00:45]}  Nc8 {[%clk 0:00:48]} 35. Bg4 {[%clk 0:00:34]}  Na7 {[%clk 0:00:44]} 36. Bxe6 {[%clk 0:00:27]}  Kxe6 {[%clk 0:00:44]} 37. Nd5 {[%clk 0:00:27]}  Nxf3 {[%clk 0:00:40]} 38. Nxb6 {[%clk 0:00:28]}  Nd4 {[%clk 0:00:39]} 39. Kc3 {[%clk 0:00:27]}  Nac6 {[%clk 0:00:37]} 40. Nf1 {[%clk 0:00:24]}  f5 {[%clk 0:00:35]} 41. exf5+ {[%clk 0:00:23]}  Kxf5 {[%clk 0:00:35]} 42. Nd7 {[%clk 0:00:23]}  Ne6 {[%clk 0:00:32]} 43. Ne3+ {[%clk 0:00:22]}  Ke4 {[%clk 0:00:28]} 44. Nd5 {[%clk 0:00:21]}  Kf3 {[%clk 0:00:26]} 45. b4 {[%clk 0:00:14]}  cxb4+ {[%clk 0:00:26]} 46. Nxb4 {[%clk 0:00:15]}  Nxb4 {[%clk 0:00:25]} 47. Kxb4 {[%clk 0:00:16]}  e4 {[%clk 0:00:25]} 48. Ne5+ {[%clk 0:00:15]}  Kf4 {[%clk 0:00:25]} 49. Ng6+ {[%clk 0:00:14]}  Kg3 {[%clk 0:00:25]} 50. Ne5 {[%clk 0:00:14]}  e3 {[%clk 0:00:25]} 51. c5 {[%clk 0:00:13]}  Nf4 {[%clk 0:00:23]} 52. Kc3 {[%clk 0:00:10]}  Kf2 {[%clk 0:00:18]} 53. Ng4+ {[%clk 0:00:10]}  Kf3 {[%clk 0:00:18]} 54. Nxe3 {[%clk 0:00:09]}  Kxe3 {[%clk 0:00:15]} 55. Kc4 {[%clk 0:00:08]}  Ke4 {[%clk 0:00:15]} 56. c6 {[%clk 0:00:08]}  bxc6 {[%clk 0:00:14]} 57. Kc5 {[%clk 0:00:08]}  Nd5 {[%clk 0:00:14]} 58. Kxc6 {[%clk 0:00:09]}  Kd4 {[%clk 0:00:13]} 59. a5 {[%clk 0:00:09]}  Nb4+ {[%clk 0:00:13]} 60. Kb5 {[%clk 0:00:09]}  Kc3 {[%clk 0:00:13]} 61. Kc5 {[%clk 0:00:10]}  Kb3 {[%clk 0:00:13]} 62. Kb5 {[%clk 0:00:10]}  Ka3 {[%clk 0:00:13]} 63. a6 {[%clk 0:00:10]}  Nxa6 {[%clk 0:00:13]} 1/2-1/2


[Site "https://www.chess.com"]

[Event "Titled Tuesday Blitz September 27 Late 2022"]
[White "Makarian, Rudik"]
[Black "Danielyan, Vahe"]
[WhiteFideId "44105681"]
[BlackFideId "13304828"]
[WhiteElo "2410"]
[BlackElo "2421"]
[Result "1-0"]
[Round "03"]
[TimeControl "180+1"]
[Date "2022.09.27"]
[WhiteClock "0:00:21"]
[BlackClock "0:00:02"]

1. d3 {[%clk 0:03:00]}  a6 {[%clk 0:02:59]} 2. g3 {[%clk 0:03:00]}  g6 {[%clk 0:02:58]} 3. Bg2 {[%clk 0:03:01]}  Bg7 {[%clk 0:02:59]} 4. f4 {[%clk 0:03:01]}  d6 {[%clk 0:02:59]} 5. Nf3 {[%clk 0:03:02]}  Nf6 {[%clk 0:02:58]} 6. O-O {[%clk 0:03:03]}  O-O {[%clk 0:02:59]} 7. e4 {[%clk 0:03:03]}  Nc6 {[%clk 0:02:58]} 8. Nc3 {[%clk 0:03:03]}  Bg4 {[%clk 0:02:58]} 9. h3 {[%clk 0:03:03]}  Bxf3 {[%clk 0:02:58]} 10. Bxf3 {[%clk 0:03:03]}  e6 {[%clk 0:02:52]} 11. Kh2 {[%clk 0:03:03]}  Nd7 {[%clk 0:02:52]} 12. Bg2 {[%clk 0:03:01]}  Nd4 {[%clk 0:02:50]} 13. Be3 {[%clk 0:03:01]}  c5 {[%clk 0:02:50]} 14. Qd2 {[%clk 0:03:01]}  Rb8 {[%clk 0:02:45]} 15. Nd1 {[%clk 0:03:01]}  f5 {[%clk 0:02:36]} 16. c3 {[%clk 0:03:00]}  Nc6 {[%clk 0:02:36]} 17. Nf2 {[%clk 0:02:58]}  Qf6 {[%clk 0:02:28]} 18. Rad1 {[%clk 0:02:48]}  Kh8 {[%clk 0:02:21]} 19. d4 {[%clk 0:02:48]}  cxd4 {[%clk 0:02:02]} 20. cxd4 {[%clk 0:02:49]}  Ne7 {[%clk 0:01:47]} 21. e5 {[%clk 0:02:36]}  Qf7 {[%clk 0:01:48]} 22. Rc1 {[%clk 0:02:33]}  d5 {[%clk 0:01:47]} 23. Rc7 {[%clk 0:02:32]}  Nc6 {[%clk 0:01:36]} 24. Rc1 {[%clk 0:02:33]}  Rfc8 {[%clk 0:01:36]} 25. Rxc8+ {[%clk 0:02:33]}  Rxc8 {[%clk 0:01:37]} 26. g4 {[%clk 0:02:28]}  fxg4 {[%clk 0:01:33]} 27. hxg4 {[%clk 0:02:24]}  Rf8 {[%clk 0:01:32]} 28. Nh3 {[%clk 0:02:24]}  Bh6 {[%clk 0:01:30]} 29. Rf1 {[%clk 0:02:21]}  Qe7 {[%clk 0:01:27]} 30. f5 {[%clk 0:02:04]}  Bxe3 {[%clk 0:01:22]} 31. Qxe3 {[%clk 0:02:05]}  exf5 {[%clk 0:01:10]} 32. gxf5 {[%clk 0:02:06]}  Nf6 {[%clk 0:00:58]} 33. Qg5 {[%clk 0:01:53]}  Ne4 {[%clk 0:00:29]} 34. Qxe7 {[%clk 0:01:25]}  Nxe7 {[%clk 0:00:28]} 35. f6 {[%clk 0:01:25]}  Nf5 {[%clk 0:00:28]} 36. Bxe4 {[%clk 0:01:23]}  dxe4 {[%clk 0:00:29]} 37. Ng5 {[%clk 0:01:19]}  h6 {[%clk 0:00:26]} 38. Nxe4 {[%clk 0:01:16]}  Nxd4 {[%clk 0:00:27]} 39. Kg3 {[%clk 0:01:12]}  Kg8 {[%clk 0:00:25]} 40. Nd6 {[%clk 0:01:04]}  Ne6 {[%clk 0:00:16]} 41. Rc1 {[%clk 0:01:01]}  g5 {[%clk 0:00:13]} 42. Kg4 {[%clk 0:01:01]}  Kh7 {[%clk 0:00:13]} 43. Kf5 {[%clk 0:01:00]}  Nd4+ {[%clk 0:00:13]} 44. Ke4 {[%clk 0:01:00]}  Ne6 {[%clk 0:00:13]} 45. Nxb7 {[%clk 0:00:53]}  Kg6 {[%clk 0:00:13]} 46. Rc6 {[%clk 0:00:53]}  Nf4 {[%clk 0:00:09]} 47. Rc7 {[%clk 0:00:44]}  Kh5 {[%clk 0:00:04]} 48. Kf5 {[%clk 0:00:42]}  Kh4 {[%clk 0:00:01]} 49. f7 {[%clk 0:00:39]}  Nd5 {[%clk 0:00:01]} 50. Rd7 {[%clk 0:00:38]}  Ne3+ {[%clk 0:00:02]} 51. Kg6 {[%clk 0:00:36]}  g4 {[%clk 0:00:02]} 52. e6 {[%clk 0:00:36]}  g3 {[%clk 0:00:02]} 53. Rd4+ {[%clk 0:00:26]}  Kh3 {[%clk 0:00:02]} 54. Re4 {[%clk 0:00:24]}  Ng4 {[%clk 0:00:02]} 55. e7 {[%clk 0:00:21]}  g2 {[%clk 0:00:01]} 56. Rxg4 {[%clk 0:00:21]}  g1=Q {[%clk 0:00:02]} 57. Rxg1 {[%clk 0:00:21]} 1-0


[Site "https://www.chess.com"]

[Event "Titled Tuesday Blitz September 27 Late 2022"]
[White "Mihajlov, Sebastian"]
[Black "Boyer, Mahel"]
[WhiteFideId "1512110"]
[BlackFideId "45102422"]
[WhiteElo "2464"]
[BlackElo "2454"]
[Result "1-0"]
[Round "03"]
[TimeControl "180+1"]
[Date "2022.09.28"]
[WhiteClock "0:00:18"]
[BlackClock "0:00:01"]

1. e4 {[%clk 0:03:00]}  c5 {[%clk 0:02:54]} 2. Nf3 {[%clk 0:03:00]}  d6 {[%clk 0:02:54]} 3. d4 {[%clk 0:03:00]}  cxd4 {[%clk 0:02:55]} 4. Nxd4 {[%clk 0:03:00]}  Nf6 {[%clk 0:02:54]} 5. Nc3 {[%clk 0:03:01]}  a6 {[%clk 0:02:54]} 6. Bc4 {[%clk 0:03:02]}  Nbd7 {[%clk 0:02:53]} 7. Be3 {[%clk 0:02:52]}  b5 {[%clk 0:02:47]} 8. Bb3 {[%clk 0:02:52]}  Nc5 {[%clk 0:02:47]} 9. f3 {[%clk 0:02:26]}  Bb7 {[%clk 0:02:43]} 10. Qd2 {[%clk 0:02:24]}  e6 {[%clk 0:02:42]} 11. O-O {[%clk 0:02:18]}  Be7 {[%clk 0:02:36]} 12. Rad1 {[%clk 0:02:08]}  O-O {[%clk 0:02:22]} 13. Kh1 {[%clk 0:02:08]}  Qc7 {[%clk 0:02:02]} 14. Qf2 {[%clk 0:01:39]}  b4 {[%clk 0:01:51]} 15. Nce2 {[%clk 0:01:37]}  a5 {[%clk 0:01:50]} 16. c3 {[%clk 0:01:35]}  Nxb3 {[%clk 0:01:44]} 17. Nxb3 {[%clk 0:01:34]}  a4 {[%clk 0:01:01]} 18. Nbd4 {[%clk 0:01:33]}  bxc3 {[%clk 0:00:27]} 19. Nxc3 {[%clk 0:01:33]}  Qd7 {[%clk 0:00:20]} 20. a3 {[%clk 0:01:31]}  Ba6 {[%clk 0:00:20]} 21. Rfe1 {[%clk 0:01:31]}  Bc4 {[%clk 0:00:18]} 22. e5 {[%clk 0:01:21]}  dxe5 {[%clk 0:00:15]} 23. Nf5 {[%clk 0:01:20]}  Nd5 {[%clk 0:00:12]} 24. Nxe7+ {[%clk 0:01:21]}  Qxe7 {[%clk 0:00:13]} 25. Bc5 {[%clk 0:01:21]}  Qc7 {[%clk 0:00:09]} 26. Bxf8 {[%clk 0:01:20]}  Nxc3 {[%clk 0:00:10]} 27. bxc3 {[%clk 0:01:14]}  Rxf8 {[%clk 0:00:09]} 28. h3 {[%clk 0:01:00]}  f6 {[%clk 0:00:09]} 29. Rd2 {[%clk 0:00:55]}  Bd5 {[%clk 0:00:09]} 30. Qe3 {[%clk 0:00:49]}  Rc8 {[%clk 0:00:08]} 31. Rc1 {[%clk 0:00:36]}  Bb3 {[%clk 0:00:06]} 32. c4 {[%clk 0:00:33]}  Qc5 {[%clk 0:00:06]} 33. Rd8+ {[%clk 0:00:28]}  Kf7 {[%clk 0:00:05]} 34. Rd7+ {[%clk 0:00:22]}  Kg6 {[%clk 0:00:03]} 35. Qd3+ {[%clk 0:00:22]}  f5 {[%clk 0:00:03]} 36. g4 {[%clk 0:00:17]}  e4 {[%clk 0:00:01]} 37. gxf5+ {[%clk 0:00:18]} 1-0


[Site "https://www.chess.com"]